Cogmind - Beta 11.1 *** ADVENTURER MODE // 2022.05.26 @ 16:01:58 Player: lobstro Result: Destroyed by S-27 Virus with Autogun Performance ------------- Evolutions (6) 3000 Regions Visited (10) 2000 Robots Destroyed (113) 565 Value Destroyed (3461) 3461 Prototype IDs (36) 720 Alien Tech Used (0) 0 Bonus (764) 764 TOTAL SCORE: 10510 Bonus ------- High Alert Combat Kills 45 Follower Combat Kills 562 Aligned with FarCom 300 Friendly Fire -143 Cogmind --------- Core Integrity 0/1150 Matter 166/300 Energy 98/100 System Corruption 2% Temperature Cool (0) Movement Core (50) Location -4/Factory Parts ------- > --- POWER (4) -------- (None) > --- PROPULSION (4) --- (None) > --- UTILITY (6) ------ (None) > --- WEAPON (5) ------- (None) > --- INVENTORY (5) ---- High-capacity Storage Unit Advanced Terrain Scan Processor Improved Target Analyzer System Shield Improved Datajack Peak State ------------ > --- POWER ------------ Micro Fission Core Micro Fission Core Micro Fission Core Light Antimatter Reactor > --- PROPULSION ------- Armored Leg Enhanced Flexi-carbon Leg Enhanced Flexi-carbon Leg Enhanced Flexi-carbon Leg > --- UTILITY ---------- Large Storage Unit Machine Analyzer Advanced Visual Processing Unit Improved Sensor Array Improved Signal Interpreter Hacking Suite > --- WEAPON ----------- Tesla Rifle Advanced Beam Cannon Enhanced Autogun Magnetic Acceleration Cannon Field Lobotomy Kit > --- INVENTORY -------- Light Nuclear Core Light Antimatter Reactor Enhanced Flexi-carbon Leg Enhanced Flexi-carbon Leg Advanced Heat Sink High-capacity Storage Unit Advanced Signal Interpreter Improved Terrain Scanner Advanced Terrain Scan Processor Improved Target Analyzer System Shield Disruptor Cannon Improved Datajack Scythe [Rating: 101] Favorites ----------- Power Improved Ion Engine Engine Improved Ion Engine Power Core Nuclear Core Reactor Light Antimatter Reactor Propulsion Armored Treads Treads Armored Treads Leg Enhanced Flexi-carbon Leg Wheel Wheel Hover Unit Aerolev Unit Utility Large Storage Unit Device Improved Terrain Scanner Storage Large Storage Unit Processor Advanced Visual Processing Unit Hackware Hacking Suite Protection Hardened Medium Armor Plating Weapon Heavy Particle Gun Energy Gun Heavy Particle Gun Energy Cannon EM Pulse Cannon Ballistic Gun Shotgun Ballistic Cannon Assault Cannon Launcher Grenade Launcher Special Weapon Field Lobotomy Kit Slashing Weapon Scythe Build | -11 -10 -10 -10 -9 -8 -8 -8 -6 -5 -4 ------- Run | Scr Mat Min Exi Min Mat Sto Rec Fac Fac Fac Slots Evolved 12 | . . . . . 4 . . 4 2 2 Power 3 | . . . . . 1 . . 1 . 1 Propulsion 2 | . . . . . 1 . . 1 . . Utility 4 | . . . . . 2 . . 1 1 . Weapon 3 | . . . . . . . . 1 1 1 Parts Attached 124 | 8 14 . . 2 30 14 3 20 20 13 Power 19 | 2 1 . . 1 3 . . 4 5 3 Engine 10 | 2 1 . . 1 2 . . 4 . . Core 8 | . . . . . 1 . . . 5 2 Reactor 1 | . . . . . . . . . . 1 Propulsion 31 | 2 4 . . . 4 10 1 5 3 2 Treads 16 | . 2 . . . 4 6 1 3 . . Leg 9 | . 2 . . . . . . 2 3 2 Wheel 2 | 2 . . . . . . . . . . Hover 4 | . . . . . . 4 . . . . Flight . | . . . . . . . . . . . Utility 30 | 2 5 . . . 7 1 2 4 5 4 Device 9 | 1 . . . . 1 . 1 2 1 3 Storage 9 | 1 5 . . . 2 . . . . 1 Processor 6 | . . . . . 1 1 1 2 1 . Hackware 1 | . . . . . . . . . 1 . Protection 5 | . . . . . 3 . . . 2 . Artifact . | . . . . . . . . . . . Weapon 44 | 2 4 . . 1 16 3 . 7 7 4 Energy Gun 10 | 1 2 . . . 3 1 . 1 1 1 Energy Cannon 7 | . . . . . 3 . . 1 2 1 Ballistic Gun 7 | 1 1 . . . 2 . . 2 1 . Ballistic Cannon 8 | . 1 . . . 3 1 . 1 1 1 Launcher 1 | . . . . 1 . . . . . . Special Weapon 2 | . . . . . . . . . 2 . Impact Weapon . | . . . . . . . . . . . Slashing Weapon 9 | . . . . . 5 1 . 2 . 1 Piercing Weapon . | . . . . . . . . . . . Special Melee Weapon . | . . . . . . . . . . . Unidentified Prototypes 4 | . . . . . . 1 . . 3 . Parts Lost 32 | . 1 . . . 1 . . 8 8 14 Power 12 | . . . . . . . . 3 3 6 Propulsion 7 | . 1 . . . . . . 4 . 2 Utility 5 | . . . . . 1 . . . 2 2 Weapon 8 | . . . . . . . . 1 3 4 Highest Loss Streak 7 | . 1 . . . 1 . . 4 5 7 To Critical Strikes . | . . . . . . . . . . . Average Slot Usage (%) 97 | . 99 100 100 100 99 99 95 90 95 85 Engine 10 | . 14 14 14 14 9 9 9 14 10 . Core 5 | . . . . . 8 9 9 3 5 12 Treads 19 | . 1 28 28 28 27 26 22 13 . . Leg 3 | . 9 . . . . . . 5 19 18 Wheel 1 | . 16 . . . . . . . . . Device 9 | . 14 14 14 14 7 9 9 6 4 3 Storage 9 | . 14 14 14 14 9 9 9 6 5 4 Processor 9 | . . . . . 9 9 17 19 17 12 Protection 3 | . . . . . 10 9 . . 3 1 Energy Gun 7 | . 14 14 14 12 4 4 9 4 3 4 Energy Cannon 2 | . . . . . 4 4 . 1 3 5 Ballistic Gun 5 | . 7 14 14 14 3 . . 3 3 4 Ballistic Cannon 3 | . 7 . . . 1 6 9 3 9 3 Slashing Weapon 1 | . . . . . 3 2 . 4 . . Naked Turns 30 | . . . . . . . . . . 30 Heaviest Build 79 | 15 31 31 31 32 58 58 55 57 73 79 Greatest Support 100 | 26 46 46 46 46 69 63 63 86 100 100 Greatest Overweight (x) 2 | . 2 . . . . . 1 1 2 1 Average Overweight (x) . | . . . . . . . . . . . Largest Inventory Capacity 20 | 8 20 15 15 15 20 15 15 15 15 15 Average Capacity 14 | 7 9 15 15 15 15 15 15 15 15 13 Most Carried 15 | 4 11 12 13 14 15 15 15 15 15 15 Average Carried 12 | 3 8 11 12 13 13 14 14 13 12 12 Final Capacity 15 | 8 15 15 15 15 15 15 15 15 15 5 Final Carried 15 | 4 11 12 13 14 15 14 14 14 15 5 Class Distribution -------------------- 46% | Mutant 31% | Skirmisher 8% | Assassin 3% | Hacker-Skirmisher Dominant Class ---------------- Mutant | -10/Materials Mutant | -10/Mines Mutant | -10/Exiles Skirmisher | -9/Mines Mutant | -8/Materials Mutant | -8/Storage Skirmisher | -8/Recycling Assassin | -6/Factory Skirmisher | -5/Factory Generator-Skirmisher | -4/Factory Resources | -11 -10 -10 -10 -9 -8 -8 -8 -6 -5 -4 ----------- Run | Scr Mat Min Exi Min Mat Sto Rec Fac Fac Fac Matter Collected 2282 | 274 185 10 50 34 361 152 257 273 435 251 Remotely . | . . . . . . . . . . . Salvage Created 3892 | 30 444 . . . 1210 547 163 664 446 388 Parts 228 | 2 24 . . . 77 32 19 33 25 16 Haulers Intercepted . | . . . . . . . . . . . Recyclers Shooed 1 | . . . . . . . . 1 . . Parts Field Recycled . | . . . . . . . . . . . Retrieved Matter . | . . . . . . . . . . . Parts Self-Destructed . | . . . . . . . . . . . Prevented . | . . . . . . . . . . . Kills | -11 -10 -10 -10 -9 -8 -8 -8 -6 -5 -4 ------- Run | Scr Mat Min Exi Min Mat Sto Rec Fac Fac Fac Combat Hostiles Destroyed 92 | . 12 . . . 28 12 12 10 12 6 Melee 33 | . . . . . 20 7 . 5 . 1 Guns 26 | . 10 . . . 3 . 6 5 1 1 Cannons 32 | . 1 . . . 5 5 6 . 11 4 AOE 1 | . 1 . . . . . . . . . Classes Destroyed 12 | 1 3 . . . 2 1 2 3 . . Builder 1 | . . . . . . . . 1 . . Tunneler 1 | 1 . . . . . . . . . . Recycler 2 | . . . . . . . 1 1 . . Mechanic 1 | . . . . . . 1 . . . . Drone 12 | . . . . . . . 12 . . . Watcher 15 | . 3 . . . 5 1 . 3 2 1 Swarmer 31 | . 6 . . . 10 3 . 4 7 1 Grunt 26 | . 6 . . . 10 5 . 1 1 3 Brawler 1 | . . . . . 1 . . . . . Sentry 13 | . . . . . 7 4 . 1 . 1 Hunter 2 | . . . . . . . . 2 . . Programmer 8 | . . . . . . . . 2 5 1 Best Kill Streak 6 | 1 4 . . . 6 5 1 5 4 3 Combat Bots Only 6 | . 4 . . . 6 4 1 4 4 3 Max Kills in Single Turn 2 | 1 1 . . . 1 1 1 2 1 1 Gunslinging . | . . . . . . . . . . . Exploded 1 | . 1 . . . . . . . . . Melee 1 | . . . . . 1 1 . 1 . 1 Uniques/NPCs Destroyed . | . . . . . . . . . . . Combat | -11 -10 -10 -10 -9 -8 -8 -8 -6 -5 -4 -------- Run | Scr Mat Min Exi Min Mat Sto Rec Fac Fac Fac Damage Taken 6303 | . 262 . . . 553 165 . 1826 1233 2264 Core 1618 | . 45 . . . 16 9 . 231 158 1159 Absorbed by Shields 376 | . . . . . 228 144 . . 4 . Core Remaining (%) 86 | 100 . . . 82 . . 95 72 84 . Volleys Fired 175 | 3 29 . . 1 29 12 26 21 32 22 Largest 4 | 2 2 . . 2 2 2 2 3 4 4 Hottest 237 | 60 75 . . 53 118 107 99 129 227 237 Shots Fired 394 | 6 58 . . 2 46 22 53 51 98 58 Gun 204 | 6 50 . . 1 20 7 27 40 25 28 Cannon 184 | . 8 . . . 26 15 26 11 69 29 Launcher 1 | . . . . 1 . . . . . . Special 5 | . . . . . . . . . 4 1 Kinetic 191 | 3 29 . . 1 13 11 26 30 57 21 Thermal 122 | . . . . . 16 7 27 21 33 18 Explosive 1 | . . . . 1 . . . . . . Electromagnetic 75 | 3 29 . . . 17 4 . . 4 18 Robot Hit Streak 19 | 2 18 . . . 19 18 5 5 14 12 Robot Miss Streak 6 | 1 1 . . . 2 1 6 2 4 2 Penetration Max . | . . . . . . . . . . . Secondary Targets . | . . . . . . . . . . . Shots Hit Robots 344 | 4 45 . . . 83 40 19 52 56 45 Core Hits 153 | 1 21 . . 1 40 17 12 23 22 16 Critical Kills . | . . . . . . . . . . . Critical Parts Destroyed 1 | . . . . . . . . 1 . . Critical Strikes 20 | . 3 . . . 3 4 1 3 4 2 Burn 4 | . . . . . . 1 1 . 2 . Destroy 1 | . . . . . . . . 1 . . Blast 4 | . 2 . . . . . . . 2 . Corrupt 2 | . 1 . . . . . . . . 1 Sever 9 | . . . . . 3 3 . 2 . 1 Melee Attacks 104 | . . . . . 53 24 . 24 . 3 Impact . | . . . . . . . . . . . Slashing 104 | . . . . . 53 24 . 24 . 3 Piercing . | . . . . . . . . . . . Sneak Attacks 4 | . . . . . 1 3 . . . . Combat Hostiles 2 | . . . . . 1 1 . . . . Follow-up Attacks . | . . . . . . . . . . . Damage Inflicted 8848 | 52 704 . . 7 2338 1202 505 1481 1504 1055 Guns 2434 | 52 504 . . . 278 139 262 558 235 406 Cannons 3217 | . 121 . . . 551 300 238 186 1269 552 Explosions 108 | . 79 . . 7 22 . . . . . Melee 3069 | . . . . . 1487 748 . 737 . 97 Ramming 20 | . . . . . . 15 5 . . . Kinetic 2599 | 22 245 . . . 144 214 238 438 902 396 Thermal 1989 | . 79 . . . 268 139 262 306 592 343 Explosive 7 | . . . . 7 . . . . . . Electromagnetic 1164 | 30 380 . . . 439 86 . . 10 219 Impact . | . . . . . . . . . . . Slashing 3069 | . . . . . 1487 748 . 737 . 97 Piercing . | . . . . . . . . . . . Highest Corruption 5 | . . . . . 2 2 2 1 5 3 Average Corruption 2 | . . . . . 1 2 2 1 4 2 Corruption Purged 1 | . . . . . . . . . . 1 Corruption Blocked . | . . . . . . . . . . . Effects 70 | . . . . . 24 15 22 . 9 . Message Errors 19 | . . . . . 8 3 8 . . . Matter Fused 14 | . . . . . 4 2 4 . 4 . Heat Flow Errors 13 | . . . . . 6 3 3 . 1 . Energy Discharges 9 | . . . . . 5 4 . . . . Parts Rejected 2 | . . . . . . . 1 . 1 . Data Loss (minor) 6 | . . . . . 1 . 4 . 1 . Data Loss (major) 3 | . . . . . . 2 . . 1 . Misfires 3 | . . . . . . 1 2 . . . Alerts 1 | . . . . . . . . . 1 . Overload Shots . | . . . . . . . . . . . Overflow Damage 205 | . 20 . . . 81 44 11 27 22 . Projectiles 82 | . . . . . 49 . 11 . 22 . Explosions 22 | . 20 . . . 2 . . . . . Melee 101 | . . . . . 30 44 . 27 . . Knockbacks 21 | . 3 . . . 2 1 3 . 11 1 Impact . | . . . . . . . . . . . Kinetic 17 | . 3 . . . 2 1 2 . 8 1 Secondary 4 | . . . . . . . 1 . 3 . Self-Inflicted Damage 44 | . 44 . . . . . . . . . Shots 2 | . 2 . . . . . . . . . Rammed 2 | . . . . . . 1 1 . . . Targets Rammed 2 | . . . . . . 1 1 . . . Kicked . | . . . . . . . . . . . Crushed . | . . . . . . . . . . . Highest Temperature 775 | . 185 . . . 281 246 224 234 676 775 Average Temperature 139 | . 65 . . . 74 93 53 80 247 294 Received Heat Transfer 632 | . 135 . . . 243 68 . 60 . 126 Effects 114 | . . . . . . . . . 56 58 Shutdowns 42 | . . . . . . . . . 19 23 Energy Bleed 14 | . . . . . . . . . 7 7 Interference 13 | . . . . . . . . . 8 5 Matter Decay 7 | . . . . . . . . . 4 3 Short Circuit 5 | . . . . . . . . . 2 3 Damage (minor) 1 | . . . . . . . . . 1 . Damage (major) 26 | . . . . . . . . . 14 12 Damage (core) 6 | . . . . . . . . . 1 5 Siege Activations . | . . . . . . . . . . . Robots Corrupted . | . . . . . . . . . . . Combat Hostiles . | . . . . . . . . . . . Parts Fried 7 | 1 2 . . . 3 1 . . . . Impact Corruptions 3 | . . . . . . 1 . . 2 . Robots Melted . | . . . . . . . . . . . Combat Hostiles . | . . . . . . . . . . . Parts Melted 2 | . . . . . . 1 . . . 1 Heat Transferred 3715 | . 150 . . . 568 333 592 518 999 555 Parts Sabotaged . | . . . . . . . . . . . Parts Stolen . | . . . . . . . . . . . Parts Stripped . | . . . . . . . . . . . Power Chain Reactions 3 | . 2 . . . 1 . . . . . Missiles Intercepted . | . . . . . . . . . . . Alert | -11 -10 -10 -10 -9 -8 -8 -8 -6 -5 -4 ------- Run | Scr Mat Min Exi Min Mat Sto Rec Fac Fac Fac Peak Influence 958 | 5 323 . . 91 201 292 122 958 199 170 Initial 943 | . 2 . . . . 18 96 943 14 13 Average 119 | 1 135 . . 19 52 137 39 429 87 80 Maximum Alert Level 3 | . 1 . . . 1 1 . 3 . . Low Security (%) 84 | 100 73 100 . 100 98 71 100 31 100 100 Level 1 8 | . 26 . . . 1 28 . 22 . . Level 2 3 | . . . . . . . . 23 . . Level 3 3 | . . . . . . . . 22 . . Level 4 . | . . . . . . . . . . . Level 5 . | . . . . . . . . . . . High Security . | . . . . . . . . . . . Max Security . | . . . . . . . . . . . Squads Dispatched 20 | . 1 . . . 2 2 1 4 4 6 Investigation 3 | . 1 . . . . 1 . 1 . . Extermination 6 | . . . . . . . . 2 3 1 Reinforcement 10 | . . . . . 2 1 1 . 1 5 Assault . | . . . . . . . . . . . Garrison 1 | . . . . . . . . 1 . . Intercept . | . . . . . . . . . . . Searches Triggered 3 | . . . . . . . . 3 . . Construction Impeded 1 | . . . . . . . 1 . . . Haulers Reinforced 1 | . . . . . . . . . 1 . Active Scanning Responses . | . . . . . . . . . . . Cargo Convoy Interrupts . | . . . . . . . . . . . Stealth | -11 -10 -10 -10 -9 -8 -8 -8 -6 -5 -4 --------- Run | Scr Mat Min Exi Min Mat Sto Rec Fac Fac Fac Distress Signals 8 | . . . . . 2 3 . 2 . 1 Communications Jammed . | . . . . . . . . . . . Distress Signals . | . . . . . . . . . . . Times Spotted 172 | . 17 . . 5 40 20 28 17 22 23 Peak Tracking Total 6 | . 3 . . 3 6 4 3 4 5 4 Tactical Retreats 7 | . . . . . 2 1 . . 1 3 Traps | -11 -10 -10 -10 -9 -8 -8 -8 -6 -5 -4 ------- Run | Scr Mat Min Exi Min Mat Sto Rec Fac Fac Fac Traps Triggered 6 | . 1 . . . 3 1 . 1 . . Indirectly . | . . . . . . . . . . . Trap Hack Attempts . | . . . . . . . . . . . Triggered . | . . . . . . . . . . . Disarmed . | . . . . . . . . . . . Reprogrammed . | . . . . . . . . . . . Reused . | . . . . . . . . . . . Traps Extracted . | . . . . . . . . . . . Installed . | . . . . . . . . . . . Triggered . | . . . . . . . . . . . Machines | -11 -10 -10 -10 -9 -8 -8 -8 -6 -5 -4 ---------- Run | Scr Mat Min Exi Min Mat Sto Rec Fac Fac Fac Machines Disabled 5 | . 1 . . 1 1 1 1 . . . Max in Single Turn 1 | . 1 . . 1 . . . . . . Machines Sabotaged . | . . . . . . . . . . . Garrisons Compromised . | . . . . . . . . . . . Overloaded Fab Kills . | . . . . . . . . . . . Hacking | -11 -10 -10 -10 -9 -8 -8 -8 -6 -5 -4 --------- Run | Scr Mat Min Exi Min Mat Sto Rec Fac Fac Fac Machines Accessed 44 | . 9 . 1 1 14 7 8 2 1 1 Terminals 34 | . 8 . . 1 11 6 5 1 1 1 Fabricators . | . . . . . . . . . . . Repair Stations . | . . . . . . . . . . . Recycling Units 6 | . 1 . . . . 1 3 1 . . Scanalyzers 2 | . . . . . 2 . . . . . Garrison Access 1 | . . . . . 1 . . . . . Total Hacks 117 | . 27 . 1 4 43 15 15 6 2 4 Successful 74 | . 14 . 1 4 30 8 12 3 1 1 Failed 43 | . 13 . . . 13 7 3 3 1 3 Catastrophic 2 | . 1 . . . . . . 1 . . Database Lockouts . | . . . . . . . . . . . Manual 1 | . . . 1 . . . . . . . Terminals 95 | . 24 . . 4 34 12 12 3 2 4 Fabricators . | . . . . . . . . . . . Repair Stations . | . . . . . . . . . . . Recycling Units 12 | . 3 . . . . 3 3 3 . . Scanalyzers 7 | . . . . . 7 . . . . . Garrison Access 2 | . . . . . 2 . . . . . Terminal Hacks 64 | . 14 . 1 4 24 7 9 3 1 1 Record 25 | . 6 . . 1 9 . 6 3 . . Prototype ID Bank 5 | . 1 . . . . 3 1 . . . Open Door 1 | . . . . . . 1 . . . . Level Access Points 1 | . . . . . . . 1 . . . Branch Access Points 1 | . . . . . 1 . . . . . Emergency Access Points 2 | . 1 . . . . 1 . . . . Alert Level 4 | . 3 . . . 1 . . . . . Unreport Threat 3 | . . . . . 1 . 1 . 1 . Locate Traps 3 | . . . . . 3 . . . . . Dispatch Records 2 | . . . . 1 1 . . . . . Maintenance Status 2 | . . . . . 2 . . . . . Patrol Status 1 | . . . . 1 . . . . . . Transport Status 1 | . . . . . 1 . . . . . Investigation Status 1 | . . . . 1 . . . . . . Hauler Manifests 1 | . . . . . 1 . . . . . Zone Layout 10 | . 3 . . . 4 2 . . . 1 EX-Prototype ID Bank 1 | . . . 1 . . . . . . . Fabricator Hacks . | . . . . . . . . . . . Repair Station Hacks . | . . . . . . . . . . . Recycling Unit Hacks 4 | . . . . . . 1 3 . . . Report Inventory 3 | . . . . . . . 3 . . . Retrieve Components 1 | . . . . . . 1 . . . . Scanalyzer 6 | . . . . . 6 . . . . . Insert Component 4 | . . . . . 4 . . . . . Analyze 2 | . . . . . 2 . . . . . Garrison Access Hacks . | . . . . . . . . . . . Unauthorized Hacks . | . . . . . . . . . . . Terminals . | . . . . . . . . . . . Fabricators . | . . . . . . . . . . . Repair Stations . | . . . . . . . . . . . Recycling Units . | . . . . . . . . . . . Scanalyzers . | . . . . . . . . . . . Garrison Access . | . . . . . . . . . . . Data Cores Recovered . | . . . . . . . . . . . Used . | . . . . . . . . . . . Hacking Detections 34 | . 9 . . 1 9 6 5 2 1 1 Full Trace Events 2 | . . . . . . 1 . 1 . . Feedback Events . | . . . . . . . . . . . Feedback Blocked . | . . . . . . . . . . . Robot Schematics Acquired . | . . . . . . . . . . . Robots Built . | . . . . . . . . . . . Authchips . | . . . . . . . . . . . Time . | . . . . . . . . . . . Total Robot Build Rating . | . . . . . . . . . . . Part Schematics Acquired 2 | . . . . . 2 . . . . . Parts Built . | . . . . . . . . . . . Authchips . | . . . . . . . . . . . Time . | . . . . . . . . . . . Total Part Build Rating . | . . . . . . . . . . . Parts Repaired . | . . . . . . . . . . . Time . | . . . . . . . . . . . Parts Recycled . | . . . . . . . . . . . Recycled Matter . | . . . . . . . . . . . Retrieved Matter . | . . . . . . . . . . . Retrieved Components 8 | . . . . . . 8 . . . . Parts Scanalyzed 2 | . . . . . 2 . . . . . Part Schematics Acquired 2 | . . . . . 2 . . . . . Parts Damaged . | . . . . . . . . . . . Bothacking | -11 -10 -10 -10 -9 -8 -8 -8 -6 -5 -4 ------------ Run | Scr Mat Min Exi Min Mat Sto Rec Fac Fac Fac Used RIF Installer . | . . . . . . . . . . . Robots Hacked . | . . . . . . . . . . . Non-combat . | . . . . . . . . . . . Combat . | . . . . . . . . . . . Robot Hacks Applied . | . . . . . . . . . . . Relay Couplers Released . | . . . . . . . . . . . Fabnet Peak Effective % . | . . . . . . . . . . . Robots Rewired 7 | . . . . . . . 7 . . . Allies Hacked . | . . . . . . . . . . . Hacks Repelled . | . . . . . . . . . . . Allies | -11 -10 -10 -10 -9 -8 -8 -8 -6 -5 -4 -------- Run | Scr Mat Min Exi Min Mat Sto Rec Fac Fac Fac Total Allies 17 | . . 2 . 3 . 1 7 . 3 1 Largest Group 6 | . . 2 2 3 3 1 6 3 2 2 Highest-Rated Group 108 | . . 43 43 40 40 100 100 36 108 108 Highest-Rated Ally 100 | . . 31 31 16 16 100 100 16 54 54 Total Orders . | . . . . . . . . . . . Ally Attacks 146 | . . . . 15 12 16 78 5 9 11 Total Damage 1781 | . . . . 207 131 535 311 66 85 446 Kills 31 | . . . . 5 1 9 11 . 2 3 Allies Corrupted . | . . . . . . . . . . . Allies Melted . | . . . . . . . . . . . Field Lobotomies 4 | . . . . . . . . . 3 1 Intel | -11 -10 -10 -10 -9 -8 -8 -8 -6 -5 -4 ------- Run | Scr Mat Min Exi Min Mat Sto Rec Fac Fac Fac Robot Analysis Total . | . . . . . . . . . . . Derelict Logs Recovered 3 | . . 1 . 2 . . . . . . Drone Launches . | . . . . . . . . . . . Drone Recoveries . | . . . . . . . . . . . Exploration | -11 -10 -10 -10 -9 -8 -8 -8 -6 -5 -4 ------------- Run | Scr Mat Min Exi Min Mat Sto Rec Fac Fac Fac Turns Passed 12873 | 91 1058 592 922 1247 3113 1110 1505 1755 789 691 Spaces Moved 6479 | 48 721 321 409 746 1495 474 667 753 455 390 Core 103 | 2 . . . . . . . . . 101 Treads 4596 | . 27 321 409 746 1495 474 667 457 . . Legs 1228 | . 188 . . . . . . 296 455 289 Wheels 552 | 46 506 . . . . . . . . . Hover . | . . . . . . . . . . . Flight . | . . . . . . . . . . . Fastest Speed 50 | 50 90 160 160 160 160 166 166 165 120 50 Average Speed 160 | 88 118 160 160 160 164 169 199 180 142 128 Slowest Speed 260 | 100 260 160 160 160 170 170 250 245 260 190 Overloaded Moves . | . . . . . . . . . . . Propulsion Burnouts . | . . . . . . . . . . . Robots Hopped . | . . . . . . . . . . . Cave-ins Triggered . | . . . . . . . . . . . Exploration Rate (%) 58 | 3 97 56 78 99 87 74 99 16 18 13 Regions Visited 10 Branch Regions 5 Pre-discovered Areas 2 | . . . . 2 . . . . . . Known Exits Taken 4 | . . . . . 1 . 1 1 1 . Unknown Exits Taken 6 | 1 1 1 1 1 . 1 . . . . Scrap Searched 3 | . . 1 . 2 . . . . . . Spaces Dug . | . . . . . . . . . . . Terrain Destroyed 41 | . 6 . . 7 5 1 10 . 10 2 Melee . | . . . . . . . . . . . Projectile 23 | . . . . . . 1 10 . 10 2 AOE 18 | . 6 . . 7 5 . . . . . Terrain Rammed . | . . . . . . . . . . . Walls Destroyed . | . . . . . . . . . . . Machines Disabled . | . . . . . . . . . . . Actions | -11 -10 -10 -10 -9 -8 -8 -8 -6 -5 -4 --------- Run | Scr Mat Min Exi Min Mat Sto Rec Fac Fac Fac Total 8465 | 86 864 400 677 798 2012 720 791 1062 525 530 Wait 1396 | 25 73 79 268 46 376 180 16 235 4 94 Move 6470 | 47 720 320 408 745 1494 473 667 752 454 390 Hop . | . . . . . . . . . . . Pick Up 65 | 3 13 1 1 2 14 7 1 9 11 3 Fast Attach 22 | 7 4 . . . 3 . . 1 4 3 Attach 39 | . . . . . 4 3 1 9 12 10 Detach 2 | . 1 . . . . . . . 1 . Swap 63 | 1 10 . . 2 23 11 2 10 4 . Drop 50 | . 14 . . 2 16 9 . 1 3 5 Fire 175 | 3 29 . . 1 29 12 26 21 32 22 Melee 104 | . . . . . 53 24 . 24 . 3 Ram . | . . . . . . . . . . . Kick . | . . . . . . . . . . . Crush 1 | . . . . . . 1 . . . . Escape Stasis . | . . . . . . . . . . . Rewire 78 | . . . . . . . 78 . . . Trap . | . . . . . . . . . . . Miscellaneous . | . . . . . . . . . . . Route ------- -11/Scrapyard -10/Materials (discovered 4 exits: [*Mat x3] / [*Min]) -10/Mines (discovered 2 exits: [*Mat] / *Exi) -10/Exiles -9/Mines (discovered 2 exits: *Mat x2) -8/Materials (discovered 5 exits: [*Fac x3] / *Sto x2) -8/Storage -8/Recycling -6/Factory -5/Factory -4/Factory History --------- Turn | Location | Event 10 | -11/Scrapyard | Discovered new exit (range 16) 92 | -11/Scrapyard | Entered Materials 282 | -10/Materials | Discovered new exit (range 15) 302 | -10/Materials | Build established: Mutant 436 | -10/Materials | Discovered new exit (range 6) 551 | -10/Materials | Discovered new exit (range 8) 1086 | -10/Materials | Discovered new exit (range 10) 1150 | -10/Materials | Entered Mines 1315 | -10/Mines | Discovered new exit (range 3) 1488 | -10/Mines | Deemed a non-threat by the Exiles lab entrance 1490 | -10/Mines | Discovered new exit (range 5) 1562 | -10/Mines | Learned location of 1 exit from Materials 1742 | -10/Mines | Entered Exiles 1742 | -10/Exiles | Accompanied by 2 allies 1772 | -10/Exiles | Led the pair of lost Derelicts to a safe place 1792 | -10/Exiles | Met 8R-AWN 1874 | -10/Exiles | Met EX-HEX 2028 | -10/Exiles | Met EX-BIN 2051 | -10/Exiles | Aligned with FarCom system 2052 | -10/Exiles | Given EX-Vault access code 2132 | -10/Exiles | Met EX-DEC 2256 | -10/Exiles | Visited The Gauntlet 2442 | -10/Exiles | Opened EX-Vault 2454 | -10/Exiles | Found Field Lobotomy Kit 2490 | -10/Exiles | Warned to stay clear of 0b10 Research branches 2642 | -10/Exiles | Discovered new exit (range 14) 2664 | -10/Exiles | Left Exiles lab with Field Lobotomy Kit 2664 | -10/Exiles | Entered Mines 2779 | -9/Mines | Learned location of Zion (-7) 2801 | -9/Mines | Learned 4 Materials zone layouts 2892 | -9/Mines | Assisted by bots powering up and referring to "LRC-V3" 2956 | -9/Mines | Build established: Skirmisher 3028 | -9/Mines | Learned location of Storage (-8) 3230 | -9/Mines | Discovered new exit (range 7) 3265 | -9/Mines | YI-UF0 nonchalantly dropped a Grenade Launcher on the ground 3509 | -9/Mines | Discovered new exit (range 6) 3911 | -9/Mines | Entered Materials 3911 | -8/Materials | Accompanied by 3 allies 3911 | -8/Materials | Evolved 4 slots: Power x1, Propulsion x1, Utility x2 3912 | -8/Materials | Identified exit to Storage 4176 | -8/Materials | Discovered new exit (range 15) 5060 | -8/Materials | Discovered new exit (range 10) 5185 | -8/Materials | Build established: Mutant 5891 | -8/Materials | Discovered new exit (range 10) 7024 | -8/Materials | Entered Storage 7602 | -8/Storage | Met 01-MTF 8117 | -8/Storage | Discovered new exit (range 4) 8134 | -8/Storage | Entered Recycling 8134 | -8/Recycling | Accompanied by 1 ally (01-MTF) 8135 | -8/Recycling | Joined Warlord attack on 0b10 via Recycling 8139 | -8/Recycling | 01-MTF left 8144 | -8/Recycling | Spotter reported a threat 8145 | -8/Recycling | Spotter reported a threat 8145 | -8/Recycling | Spotter reported a threat 8151 | -8/Recycling | Spotter reported a threat 8158 | -8/Recycling | Spotter reported a threat 8166 | -8/Recycling | Spotter reported a threat 8166 | -8/Recycling | Spotter reported a threat 8166 | -8/Recycling | Spotter reported a threat 8203 | -8/Recycling | Spotter reported a threat 8211 | -8/Recycling | Spotter reported a threat 8212 | -8/Recycling | Spotter reported a threat 8219 | -8/Recycling | Spotter reported a threat 8256 | -8/Recycling | Spotter reported a threat 8265 | -8/Recycling | Spotter reported a threat 8272 | -8/Recycling | Spotter reported a threat 8276 | -8/Recycling | Spotter reported a threat 8309 | -8/Recycling | Spotter reported a threat 8325 | -8/Recycling | Spotter reported a threat 8332 | -8/Recycling | Spotter reported a threat 8362 | -8/Recycling | Spotter reported a threat 8368 | -8/Recycling | Spotter reported a threat 8416 | -8/Recycling | Spotter reported a threat 8416 | -8/Recycling | Spotter reported a threat 8416 | -8/Recycling | Spotter reported a threat 8421 | -8/Recycling | Spotter reported a threat 8442 | -8/Recycling | Build established: Skirmisher 8467 | -8/Recycling | Spotter reported a threat 8467 | -8/Recycling | Spotter reported a threat 8467 | -8/Recycling | Spotter reported a threat 8467 | -8/Recycling | Spotter reported a threat 8520 | -8/Recycling | Spotter reported a threat 8540 | -8/Recycling | Spotter reported a threat 8606 | -8/Recycling | Spotter reported a threat 8631 | -8/Recycling | Spotter reported a threat 8632 | -8/Recycling | Spotter reported a threat 8659 | -8/Recycling | Spotter reported a threat 8678 | -8/Recycling | Spotter reported a threat 8685 | -8/Recycling | Spotter reported a threat 8711 | -8/Recycling | Spotter reported a threat 8727 | -8/Recycling | Identified exit to Factory 8738 | -8/Recycling | Spotter reported a threat 8751 | -8/Recycling | Spotter reported a threat 8764 | -8/Recycling | Spotter reported a threat 8788 | -8/Recycling | Spotter reported a threat 8804 | -8/Recycling | Spotter reported a threat 8823 | -8/Recycling | Spotter reported a threat 8830 | -8/Recycling | Spotter reported a threat 8871 | -8/Recycling | Spotter reported a threat 8882 | -8/Recycling | Spotter reported a threat 8889 | -8/Recycling | Spotter reported a threat 8900 | -8/Recycling | Spotter reported a threat 8924 | -8/Recycling | Spotter reported a threat 8935 | -8/Recycling | Spotter reported a threat 8942 | -8/Recycling | Spotter reported a threat 8953 | -8/Recycling | Spotter reported a threat 8976 | -8/Recycling | Spotter reported a threat 9029 | -8/Recycling | Spotter reported a threat 9048 | -8/Recycling | Spotter reported a threat 9048 | -8/Recycling | Spotter reported a threat 9100 | -8/Recycling | Spotter reported a threat 9101 | -8/Recycling | Spotter reported a threat 9106 | -8/Recycling | Spotter reported a threat 9121 | -8/Recycling | Spotter reported a threat 9153 | -8/Recycling | Spotter reported a threat 9192 | -8/Recycling | Spotter reported a threat 9193 | -8/Recycling | Spotter reported a threat 9220 | -8/Recycling | Spotter reported a threat 9241 | -8/Recycling | Spotter reported a threat 9245 | -8/Recycling | Spotter reported a threat 9283 | -8/Recycling | Spotter reported a threat 9394 | -8/Recycling | Spotter reported a threat 9422 | -8/Recycling | Spotter reported a threat 9430 | -8/Recycling | Spotter reported a threat 9465 | -8/Recycling | Spotter reported a threat 9468 | -8/Recycling | Spotter reported a threat 9483 | -8/Recycling | Spotter reported a threat 9495 | -8/Recycling | Spotter reported a threat 9519 | -8/Recycling | Spotter reported a threat 9552 | -8/Recycling | Spotter reported a threat 9553 | -8/Recycling | Spotter reported a threat 9554 | -8/Recycling | Spotter reported a threat 9555 | -8/Recycling | Spotter reported a threat 9589 | -8/Recycling | Spotter reported a threat 9589 | -8/Recycling | Spotter reported a threat 9589 | -8/Recycling | Spotter reported a threat 9639 | -8/Recycling | Entered Factory 9639 | -6/Factory | Accompanied by 3 allies 9639 | -6/Factory | Evolved 4 slots: Power x1, Propulsion x1, Utility x1, Weapon x1 9962 | -6/Factory | Build established: Assassin 9989 | -6/Factory | Search patrols dispatched 10339 | -6/Factory | Search patrols dispatched 10419 | -6/Factory | Build established: Scavenger-Assassin 10526 | -6/Factory | Lost 4 parts (2p2n) 10686 | -6/Factory | Lost 4 parts (1p2n1w) 10689 | -6/Factory | Search patrols dispatched 10943 | -6/Factory | Build established: Skirmisher 11339 | -6/Factory | Build established: Assassin 11356 | -6/Factory | Garrison activated, responded to threat 11365 | -6/Factory | Discovered new exit (range 7) 11392 | -6/Factory | Identified exit to Factory 11394 | -6/Factory | Entered another Factory area 11394 | -5/Factory | Evolved 2 slots: Utility x1, Weapon x1 11647 | -5/Factory | Build established: Skirmisher 11776 | -5/Factory | Lost 3 parts (1p1u1w) 11986 | -5/Factory | Assimilated P-70 Sage with FLK Orb 11989 | -5/Factory | Assimilated P-70 Sage with FLK Orb 12019 | -5/Factory | Lost 5 parts (2p1u2w) 12132 | -5/Factory | Discovered new exit (range 8) 12162 | -5/Factory | Assimilated P-70 Sage with FLK Orb 12181 | -5/Factory | Identified exit to Factory 12183 | -5/Factory | Entered another Factory area 12183 | -4/Factory | Accompanied by 2 allies 12183 | -4/Factory | Evolved 2 slots: Power x1, Weapon x1 12299 | -4/Factory | Build established: Hacker-Skirmisher 12340 | -4/Factory | Core integrity fell below 50% 12694 | -4/Factory | Core integrity fell below 20% 12715 | -4/Factory | Lost 4 parts (1p1n2w) 12782 | -4/Factory | Assimilated P-70 Sage with FLK Orb 12801 | -4/Factory | Released all parts (12) 12811 | -4/Factory | Lost 7 parts (4p1n2w) 12874 | -4/Factory | Destroyed by S-27 Virus with Autogun Last Messages --------------- 12801_ Released Adv. Visual Processing Unit. 12801_ Released Lrg. Storage Unit. 12801_ Released Arm. Leg. 12801_ Released Imp. Signal Interpreter. 12801_ Released Imp. Sensor Array. 12801_ Released Enh. Flexi-carbon Leg. 12801_ Released Imp. Terrain Scanner. 12801_ Released Phase Gun. 12802_ Knocked back. 12802_ U-05 Engineer system corrupted by crushing effect. 12803_ U-05 Engineer lays Concrete. 12815_ Acquired Adv. System Restoration Module. 12820_ Acquired Lrg. Storage Unit. 12821_ Adv. System Restoration Module purges 1% system corruption (2%). 12821_ Dropped Lrg. Storage Unit. 12858_ Adv. System Restoration Module destroyed. 12859_ Connecting with Terminal... >>Layout(Zone) Retrieving Zone 5G layout... Downloaded map data. Map ----- +----------------------------------------------------+ | ??????????????###?????????# #?????# ## # | | ??????????????###########?# #?????############## # | | ?????????????? ### #######????????????# # | | ?????????????? """" # #????????????# # | | ?????????????? """" # ############## # | | ?????????????? """" # # | | ?????????????? """" # # | | ?????????????? """" / T # | | ?????????????? """" # # | | ?????????????? """" # # | | ?????????????? # ############## # | | ?????????????? # #????????????# # | | ?????????????? ### ###????????????# # | | ?????????????? #?# #??????????????? # | | ???????############+#####?# #??????????????? # | | ???????# # #?????# #??????????????? # | | ???????# # #?????# #??????????????? # | | ???????# # #?????# #??????????????? # | | ???????# # ####### ##?????????????? ? | | ???????# # s #?????????????? ? | | ???????# # sss #???????????????? | | ???????# # #???????????????? | | ???????# + #???????????????? | | ???????# # #####???????????? | | ???????# # ????????? | | ???????# ! # @ #?????????? | | ???????# ######### #?????????? | | ???????# #???????# """" #?????????? | | ???????# #???????# """" #?????????? | | ???????# % #???????# """" ??????????? | | ???????############???????# ""??? ??????????? | | ??????????????????????????# ""?????????????????? | | ??????????????????????????? "??????????????????? | | ??????????????????????????? "??????????????????? | | ??????????????????????????? ??????????????????? | | ???????????????????????????? ????????????????????? | | ?????????????????????????????????????????????????? | | ?????????????????????????????????????????????????? | | ?????????????????????????????????????????????????? | | ?????????????????????????????????????????????????? | | ?????????????????????????????????????????????????? | | ?????????????????????????????????????????????????? | | ?????????????????????????????????????????????????? | | ?????????????????????????????????????????????????? | | ?????????????????????????????????????????????????? | | ?????????????????????????????????????????????????? | | ?????????????????????????????????????????????????? | | ?????????????????????????????????????????????????? | | ?????????????????????????????????????????????????? | | ?????????????????????????????????????????????????? | +----------------------------------------------------+ Best States ------------- Heat Dissipation 43 Energy Generation 51 Energy Capacity 600 Matter Stores 300 Matter Capacity 300 Sight Range 20 Robot Scan Range 16 Terrain Scan Range 16 Terrain Scan Density 10 Armor Coverage 375 Resistance: KI 20 Resistance: TH 20 Resistance: EX 20 Resistance: EM 20 Resistance: I 20 Resistance: S 20 Resistance: P 20 Evasion (%) 55 Recoil Reduction 4 Offensive Hacking 20 Item Schematics ----------------- Arm. Treads | -8/Materials | Scanalyzed Imp. Datajack | -8/Materials | Scanalyzed Robot Schematics ------------------ None Fabricated ------------ Nothing Alien Tech Used ----------------- None Achievements -------------- \\IAMDERELICT Challenges ------------ None Game ------ Seed FlakThermicBuckler Manual? 0 Play Time 02:18:36 Cumulative 50.4 hours Start 2022.05.22 @ 22:34:51 End 2022.05.26 @ 16:01:58 Sessions 5 Manual Loads 0 Difficulty Adventurer Special Mode None Game No. 23 Rogue 0 Adventurer 23 Explorer 0 Win Type - Total 0 Types 0/0/0/0/0/0/0/0/0 Lore% 27 Gallery% 29 Achievement% 26 Wizard Run 0 Options --------- ASCII 0 Keyboard 0 Movement Numpad Keybinds 0 Fullscreen 1 Font 18/SmallcapsGlow Map View 76x50 Tactical HUD 1 Map Filters NONE Filters NONE Steam 1 RUN: 0320a86c-bfce-41a3-91dc-5118f5a4a35b